[Event "Azerbaijan-ch 1st League 2025"]
[Site "Baku"]
[Date "2025.01.07"]
[Round "2.2"]
[White "Gurbanov, Ismayil"]
[Black "Atakishiyev, Elmar"]
[Result "0-1"]
[Annotator "TA"]
[ECO "B52"]
[WhiteElo "2248"]
[BlackElo "2408"]
[PlyCount "152"]
[EventDate "2025.01.05"]
[EventType "swiss"]
[EventCountry "AZE"]
[SourceTitle "playchess.com"]
[Source "ChessBase"]
[SourceQuality "1"]
[TimeControl "40/5400+30:1800+30"]

{[%evp 40,152,-7,-6,-7,0,-7,-16,0,-28,-36,-48,-34,-44,-31,-81,-73,-70,-60,-54,-68,-108,-56,-66,0,-98,0,-67,-75,-68,-63,-79,-70,-110,-112,-122,-37,-37,-42,-57,-44,-40,-14,-75,-82,-76,-45,-41,-45,-63,-29,-29,-8,-8,-8,0,0,0,0,-8,-8,-14,-14,-39,-8,-8,-8,-113,-113,-113,-113,-101,-28,-28,-28,-28,-29,-29,-62,-113,-97,-8,-8,-113,-113,-113,-113,-113,-113,-113,-113,-113,-8,-113,-113,-29971,-29970,-29976,-29977,-29977,-29972,-29972,0,-29977,-29978,-29978,-29979,-29979,-29980,-29980,-29981,-29980,-29982,-29982,-29983]} 1. e4 {[%emt 0:01:12]} c5 {[%emt 0:00:11]} 2. Nf3 {[%emt 0:00:16]} d6 {[%emt 0:00:07]} 3. Bb5+ {[%emt 0:00:08]} Bd7 {[%emt 0:00:10]} 4. Bxd7+ {[%emt 0:00:06]} Nxd7 {[%emt 0:00:32]} 5. O-O {[%emt 0:00:08]} Ngf6 {[%emt 0:00:08]} 6. Qe2 {[%emt 0:00:05]} e6 {[%emt 0:00:22]} 7. b3 {[%emt 0:00:05]} Be7 {[%emt 0:00:21]} 8. Bb2 {[%emt 0:00:05]} O-O {[%emt 0:00:16]} 9. c4 {[%emt 0:00:32]} a6 {[%emt 0:01:12]} 10. d4 {[%emt 0:01:14]} cxd4 {[%emt 0:00:23]} 11. Nxd4 {[%emt 0:00:06]} Rc8 {[%emt 0:00:43]} 12. Nc3 {[%emt 0:00:23]} Qa5 {[%emt 0:00:13]} 13. Rad1 {[%emt 0:01:26]} Qh5 {[%emt 0:09:18]} 14. f3 {[%emt 0:00:30]} Rfe8 {[%emt 0:01:40]} 15. g4 {[%emt 0:01:56]} Qh4 {[%emt 0:11:07]} 16. Qf2 {[%emt 0:01:31]} Qxf2+ {[%emt 0:04:57]} 17. Rxf2 {[%emt 0:00:50]} Ne5 {[%emt 0:06:33]} 18. Rfd2 {[%emt 0:24:16]} Nfd7 {[%emt 0:04:06]} 19. Nce2 {[%emt 0:02:52]} Ng6 {[%emt 0:08:31]} 20. Nc2 {[%emt 0:04:23]} Nde5 {[%emt 0:01:46]} 21. Kf2 {[%emt 0:03:10]} b5 {[%emt 0:08:54]} 22. cxb5 {[%emt 0:08:48]} axb5 {[%emt 0:00:04]} 23. Ne3 {[%emt 0:02:11]} Ra8 {[%emt 0:00:20]} (23... b4 {looks sharper.} 24. Rc2 Bh4+ 25. Kg2 Bg5) 24. Bxe5 {[%emt 0:09:05]} dxe5 {[%emt 0:00:37]} 25. Rc2 {[%emt 0:00:08]} Ra7 {[%emt 0:02:28]} 26. Rdc1 {[%emt 0:01:12]} Kf8 {[%emt 0:03:43]} 27. Nc3 {[%emt 0:02:23]} ({White should try} 27. Ng2 $15) 27... Rb8 $17 {[%emt 0:00:58]} 28. Ne2 {[%emt 0:07:20]} Rd8 {[%emt 0:01:42]} 29. Rd1 {[%emt 0:00:34]} Rda8 {[%emt 0:02:56]} 30. Nc3 {[%emt 0:01:06]} Rb7 {[%emt 0:05:32]} (30... Nf4 $17 31. a4 bxa4 32. Nxa4 Kg8) 31. Ne2 $15 {[%emt 0:02:58]} Rba7 {[%emt 0:00:40]} 32. Nc3 $1 {[%emt 0:00:47]} Rb7 {[%emt 0:01:04]} 33. Ne2 {[%emt 0:00:06]} Bh4+ {[%emt 0:00:07]} 34. Kf1 {[%emt 0:00:57]} Bg5 {[%emt 0:00:06]} 35. Kf2 {[%emt 0:00:17]} Rba7 {[%emt 0:00:13]} 36. Nc3 {[%emt 0:01:02]} Rc7 {[%emt 0:00:44]} 37. Rdc1 {[%emt 0:00:58]} Nf4 {[%emt 0:03:13]} (37... Rd8 $17 {Threatens to win with ...Rd3.} 38. Ne2 (38. Nxb5 $2 Rcd7 $19) 38... Ra7) 38. Nxb5 $15 {[%emt 0:03:17]} Nd3+ {[%emt 0:02:25]} 39. Kf1 $1 {[%emt 0:00:12]} Rxc2 {[%emt 0:02:38]} (39... Nxc1 40. Nxc7 Rxa2 41. Rxa2 Nxa2 42. Nc4) 40. Rxc2 {[%emt 0:00:00]} Bxe3 {[%emt 0:00:00]} (40... Nb4 $5 41. Re2 Nxa2 $15) 41. Ke2 {[%emt 0:01:29]} (41. Rc3 $1 $11 {keeps the balance.}) 41... Nb4 $17 {[%emt 0:04:17]} 42. Rc4 {[%emt 0:01:52]} Bb6 {[%emt 0:03:45]} (42... Rxa2+ 43. Kxe3 Nc2+ 44. Kd3 Ne1+ 45. Ke3 $17) 43. Rxb4 {[%emt 0:00:18]} Rxa2+ {[%emt 0:00:04]} 44. Kd1 {[%emt 0:01:53]} Rxh2 {[%emt 0:10:41]} 45. Nd6 {[%emt 0:02:27]} Bc7 {[%emt 0:00:23]} 46. Nxf7 {[%emt 0:00:17]} Kxf7 {[%emt 0:02:22]} 47. Rb7 {[%emt 0:00:06]} Kf6 {[%emt 0:01:12]} 48. Rxc7 {[%emt 0:00:03]} Rf2 {[%emt 0:00:05]} 49. Rc3 {[%emt 0:06:14]} g6 {[%emt 0:00:05]} 50. Ke1 {[%emt 0:00:04]} Rb2 {[%emt 0:00:04]} 51. Kf1 {[%emt 0:00:24]} h5 {[%emt 0:00:39]} 52. gxh5 {[%emt 0:00:13]} gxh5 {[%emt 0:00:01]} 53. Kg1 {[%emt 0:00:39]} (53. Rc5 $11) 53... Kg5 $1 $17 {[%emt 0:08:28]} 54. Rc6 {[%emt 0:01:39]} Kf4 {[%emt 0:00:04]} (54... Rxb3 55. Rxe6 Rxf3 56. Rxe5+ Kg4 57. Re7 $11) 55. Rxe6 {[%emt 0:00:05]} Kg3 {[%emt 0:00:18]} (55... Rxb3 $6 56. Kg2 $11) (55... Kxf3 $6 56. Rxe5 Rb1+ 57. Kh2 $11) (55... h4 $1 $17) 56. Rg6+ $1 $11 {[%emt 0:00:23]} Kxf3 {[%emt 0:00:05]} 57. Rg5 {[%emt 0:00:15]} Rb1+ {[%emt 0:00:05]} 58. Kh2 {[%emt 0:00:05]} Kxe4 {[%emt 0:00:03]} 59. Rxh5 {[%emt 0:00:14]} Kd4 $1 {[%emt 0:05:19]} (59... Rxb3 60. Rh4+ Kd5 61. Kg2 $15) 60. Kg2 {[%emt 0:32:37]} (60. Rh8 $17) 60... e4 {[%emt 0:00:12]} 61. Kf2 {[%emt 0:02:50]} (61. Rh8 $1 $11 {was the only way to keep the balance.}) 61... Rb2+ $1 $17 {[%emt 0:00:12]} ({But not} 61... Rxb3 $6 62. Ra5 $11) 62. Ke1 {[%emt 0:00:23]} Kd3 {[%emt 0:00:04]} 63. Rd5+ {[%emt 0:02:00]} Ke3 {[%emt 0:00:06]} 64. Kd1 {[%emt 0:00:07]} Rxb3 {[%emt 0:00:45]} 65. Rh5 {[%emt 0:00:16]} Rb1+ {[%emt 0:00:07]} 66. Kc2 {[%emt 0:00:05]} Rf1 {[%emt 0:00:18]} 67. Rh3+ $2 {[%emt 0:00:53][%mdl 8192]} (67. Re5 $17) 67... Ke2 {[%emt 0:00:45]} 68. Rh4 {[%emt 0:02:19]} e3 {[%emt 0:00:06]} 69. Rh2+ {[%emt 0:01:49]} Rf2 {[%emt 0:00:05]} 70. Rh1 {[%emt 0:00:14]} Rf1 {[%emt 0:02:52]} 71. Rh2+ {[%emt 0:00:19]} Kf3 {[%emt 0:00:28]} 72. Rh3+ {[%emt 0:00:10] [#]} Kf2 $1 {[%emt 0:00:22]} 73. Kd3 {[%emt 0:03:14]} Rd1+ {[%emt 0:00:05]} 74. Ke4 {[%emt 0:00:04]} e2 {[%emt 0:00:06]} 75. Rh2+ {[%emt 0:00:10] [#]} Kf1 $1 {[%emt 0:00:06]} 76. Kf3 {[%emt 0:00:34]} Rd3+ {[%emt 0:00:02]} ({Weaker is} 76... e1=B 77. Rh1#) 0-1

[Event "Azerbaijan-ch 1st League 2025"]
[Site "Baku"]
[Date "2025.01.07"]
[Round "2.3"]
[White "Ahmadov, Fariz"]
[Black "Garayev, Kanan"]
[Result "1-0"]
[Annotator "TA"]
[ECO "C55"]
[WhiteElo "2224"]
[BlackElo "2340"]
[PlyCount "110"]
[EventDate "2025.01.05"]
[EventType "swiss"]
[EventCountry "AZE"]
[SourceTitle "playchess.com"]
[Source "ChessBase"]
[SourceQuality "1"]
[TimeControl "40/5400+30:1800+30"]

{[%evp 25,110,2,1,20,37,39,45,36,105,81,87,72,70,46,54,0,0,0,0,-36,-36,-55,41,35,45,0,0,0,24,17,105,91,110,104,97,105,89,73,82,70,82,31,68,-33,-16,-24,-25,-13,0,0,0,-36,-30,-19,-54,-41,0,6,24,0,0,0,0,0,0,0,333,294,279,267,247,264,502,502,502,502,918,835,1897,1878,29969,29967,29970,29971,12795,5080,5065]} 1. e4 {[%emt 0:00:47]} e5 {[%emt 0:00:52]} 2. Nf3 {[%emt 0:00:59]} Nc6 {[%emt 0:00:24]} 3. Bc4 {[%emt 0:00:28]} Nf6 {[%emt 0:01:13]} 4. d3 {[%emt 0:00:45]} h6 {[%emt 0:00:34]} 5. O-O {[%emt 0:00:06]} d6 {[%emt 0:00:10]} 6. c3 {[%emt 0:02:08]} g5 {[%emt 0:00:20]} 7. Na3 {[%emt 0:02:06]} Bg7 {[%emt 0:03:21]} 8. Nc2 {[%emt 0:01:22]} Be6 {[%emt 0:00:20]} 9. Ne3 {[%emt 0:01:32]} Qd7 {[%emt 0:04:45]} 10. b4 {[%emt 0:01:34]} O-O {[%emt 0:01:15]} 11. Qc2 {[%emt 0:10:57]} Rad8 {[%emt 0:18:26]} 12. Rb1 {[%emt 0:03:47]} Ne7 {[%emt 0:03:03]} 13. Bb3 {[%emt 0:06:46]} Ng6 {[%emt 0:02:08]} 14. d4 {[%emt 0:00:42]} g4 {[%emt 0:05:24]} 15. Nxe5 {[%emt 0:06:42]} dxe5 {[%emt 0:04:44]} 16. d5 {[%emt 0:00:05]} Kh7 {[%emt 0:06:17]} ({Black should try} 16... Nf4 $14) 17. dxe6 {[%emt 0:08:31]} fxe6 {[%emt 0:00:44]} 18. g3 {[%emt 0:01:19]} Qc6 {[%emt 0:01:31]} 19. Qe2 {[%emt 0:06:31]} Nxe4 {[%emt 0:03:16]} 20. b5 {[%emt 0:07:11]} (20. Nd1 $1 $14) 20... Nxc3 $11 {[%emt 0:01:34]} (20... Qxc3 $6 21. Bxe6 (21. Nxg4 Qd3 $14) 21... Qd3 22. Qxd3 (22. Qxg4 Nxf2 23. Qb4 Nf4 $17) 22... Rxd3 23. Bxg4 $16 (23. Nxg4 Nc3 $14)) 21. Qxg4 {[%emt 0:03:10]} Qe8 $1 {[%emt 0:05:51]} (21... Nxb5 $6 22. Bc2 (22. Qxe6 Qxe6 23. Bxe6 Nd4 $15) (22. Bxe6 $2 Nd4 $17) 22... Rf6 23. h4 $14 (23. Be4 Qe8 $16)) 22. Rb2 {[%emt 0:05:16]} (22. Ba3 $5) 22... e4 $1 {[%emt 0:16:03]} 23. Qxe6 {[%emt 0:07:00]} Qxe6 {[%emt 0:02:56]} (23... Nxb5 $15 24. Qxe8 Rdxe8 25. Bg8+ Rxg8 (25... Kxg8 26. Rxb5 b6 27. Ng4 $11) 26. Rxb5 b6) 24. Bxe6 $14 {[%emt 0:00:05]} Ne5 {[%emt 0:00:19]} 25. Kg2 {[%emt 0:02:27]} Nd3 {[%emt 0:04:34]} 26. Rc2 {[%emt 0:02:42]} Nxb5 {[%emt 0:07:22]} 27. Bf5+ {[%emt 0:01:19]} Rxf5 {[%emt 0:01:30]} (27... Kh8 $11 28. Bxe4 b6) 28. Nxf5 $16 {[%emt 0:00:05]} c5 {[%emt 0:01:56]} 29. Be3 {[%emt 0:02:06]} b6 {[%emt 0:00:52]} 30. Rc4 {[%emt 0:02:31]} Re8 {[%emt 0:00:29]} 31. a4 {[%emt 0:15:01]} Nc7 {[%emt 0:01:49]} 32. Rb1 {[%emt 0:00:00]} Re6 {[%emt 0:01:45]} 33. h4 {[%emt 0:00:00]} (33. g4 $16) 33... a6 {[%emt 0:00:03] [#]} 34. Bxc5 {[%emt 0:00:00]} (34. g4 $1 $14) 34... bxc5 $15 {[%emt 0:01:05]} (34... Nxc5 $6 35. Nxg7 (35. a5 Bf8 $14) 35... Kxg7 36. a5 $16) 35. Rb7 {[%emt 0:00:00]} Ne8 {[%emt 0:00:01]} 36. a5 {[%emt 0:00:00]} Kg8 {[%emt 0:01:00]} 37. Rb6 {[%emt 0:00:00]} Kf7 {[%emt 0:00:19]} 38. h5 {[%emt 0:00:47]} Bf8 {[%emt 0:00:43]} 39. Rxe6 {[%emt 0:02:04]} Kxe6 {[%emt 0:00:01]} 40. Rxe4+ {[%emt 0:00:00]} Kxf5 {[%emt 0:00:00]} (40... Kd7 $15 {might be stronger.}) 41. Rxe8 $11 {[%emt 0:00:08]} Bg7 {[%emt 0:02:20]} 42. Rc8 {[%emt 0:05:19]} Ke4 {[%emt 0:09:20]} 43. Rc6 {[%emt 0:03:03]} Kd5 {[%emt 0:00:33]} 44. Rxa6 {[%emt 0:00:09]} c4 {[%emt 0:00:22]} 45. Ra8 {[%emt 0:00:50]} Kc6 $2 {[%emt 0:05:34][%mdl 8192]} (45... c3 $11 {and Black is okay.} 46. a6 Bd4 47. Rd8+ (47. a7 Bxa7 48. Rxa7 c2 $11) 47... Kc4 48. Rxd4+ Kxd4) 46. Rc8+ $18 {[%emt 0:03:54]} Kb5 {[%emt 0:00:23]} 47. a6 $1 {[%emt 0:05:00]} Bd4 {[%emt 0:00:09]} 48. Rc7 {[%emt 0:04:09]} Bxf2 $2 {[%emt 0:03:27] [#]} (48... Bb6 49. Kf1 (49. a7 Bxa7 50. Rxa7 c3 $18) 49... Kxa6 (49... Bxc7 $2 {loses.} 50. a7 $18) 50. Rxc4 Kb5) 49. g4 $1 $18 {[%emt 0:04:50]} ({Less strong is} 49. a7 Bxa7 50. Rxa7 c3 $16) 49... Kxa6 {[%emt 0:10:42]} 50. Rxc4 {[%emt 0:00:17]} Bb6 {[%emt 0:03:10]} (50... Bc5 $142 51. g5 Kb5) 51. Rc6 $18 {[%emt 0:01:31]} Ne5 {[%emt 0:00:23]} 52. Rxh6 {[%emt 0:00:53]} Nxg4 {[%emt 0:00:01] [#]} 53. Re6 $1 {[%emt 0:00:29]} Ne3+ {[%emt 0:00:52]} 54. Kf3 {[%emt 0:00:35]} Nf5 {[%emt 0:01:15]} 55. Kg4 (55. Rf6 $142 Kb7 56. Rxf5) 55... Nd4 {[%emt 0:00:30]} 1-0

[Event "Azerbaijan-ch 1st League 2025"]
[Site "Baku"]
[Date "2025.01.07"]
[Round "2.4"]
[White "Suleymanli, Suleyman"]
[Black "Abdulkarimli, Eljan"]
[Result "0-1"]
[Annotator "TA"]
[ECO "B14"]
[WhiteElo "2280"]
[BlackElo "2163"]
[PlyCount "81"]
[EventDate "2025.01.05"]
[EventType "swiss"]
[EventCountry "AZE"]
[SourceTitle "playchess.com"]
[Source "ChessBase"]
[SourceQuality "1"]
[TimeControl "40/5400+30:1800+30"]

{[%evp 12,81,34,-6,-8,-3,0,0,63,34,35,31,31,0,1,0,31,37,28,0,0,0,0,0,13,0,8,0,0,0,28,21,24,0,0,0,78,62,72,-112,-113,-208,-208,-184,-91,-273,-226,-237,-222,-795,-636,-637,-617,-612,-622,-616,-604,-628,-633,-589,-556,-595,-602,-677,-657,-752,-624,-877,-790,-1202,-1192,-1079]} 1. e4 {[%emt 0:00:01]} c6 {[%emt 0:02:02]} 2. d4 {[%emt 0:01:21]} d5 {[%emt 0:00:06]} 3. exd5 {[%emt 0:00:01]} cxd5 {[%emt 0:00:17]} 4. c4 {[%emt 0:00:04]} e6 {[%emt 0:01:49]} 5. Nf3 {[%emt 0:00:42]} Nf6 {[%emt 0:00:27]} 6. Nc3 {[%emt 0:00:45]} Nc6 {[%emt 0:02:54]} 7. Be2 {[%emt 0:01:09]} Be7 {[%emt 0:01:27]} 8. O-O {[%emt 0:00:09]} dxc4 {[%emt 0:02:45]} 9. Bxc4 {[%emt 0:00:18]} Nb4 {[%emt 0:01:26]} (9... O-O $11) 10. Ne5 {[%emt 0:02:11]} O-O {[%emt 0:02:30]} 11. Be3 {[%emt 0:00:54]} Bd7 {[%emt 0:19:30]} 12. a3 {[%emt 0:07:48]} Nbd5 {[%emt 0:04:28]} 13. Bxd5 {[%emt 0:06:29]} (13. Nxd5 Nxd5 14. Qg4 Bc6 15. Bd3) 13... exd5 {[%emt 0:03:12]} 14. Qb3 {[%emt 0:00:05][%csl LRb7,LRd5]} Bc6 {[%emt 0:01:27]} 15. Nxc6 {[%emt 0:01:22]} (15. Bg5 {feels hotter.} Re8 16. Rfe1 Ng4 17. Bxe7 Qxe7 18. Nf3) 15... bxc6 {[%emt 0:00:08]} 16. Na4 {[%emt 0:22:54]} Qd7 {[%emt 0:04:11]} 17. Rac1 {[%emt 0:01:24]} Rfc8 {[%emt 0:04:13]} 18. Rc2 {[%emt 0:05:11]} Qf5 {[%emt 0:06:31]} 19. h3 {[%emt 0:07:23][%cal Bh2h3,Bh3h4][%mdl 32]} Rab8 {[%emt 0:06:34]} 20. Qc3 {[%emt 0:00:02]} Bd6 {[%emt 0:07:51]} 21. Rfc1 {[%emt 0:01:48]} g5 {[%emt 0:06:51][%cal Bg7g5,Bg5g4,Bg4g3][%mdl 32]} 22. Qe1 {[%emt 0:24:26]} g4 $1 $36 {[%emt 0:02:43][%mdl 2048] Black fights for an advantage.} 23. Rxc6 {[%emt 0:01:23]} Rd8 {[%emt 0:03:30]} (23... Rxc6 $11 24. Rxc6 Qd7) 24. h4 $16 {[%emt 0:01:05]} g3 {[%emt 0:02:26]} 25. f3 $2 {[%emt 0:04:06] Wards off Qg4} (25. fxg3 $16 {keeps the pressure on. Hoping for Qf1.} Ne4 26. Rxd6 Nxd6 27. Bf4) 25... Nh5 $17 {[%emt 0:03:07][%cal Bf6h5,Bh5f4,Bf4e2][%mdl 32]} 26. Qd2 {[%emt 0:01:43]} (26. b4 $17) 26... Bf4 $19 {[%emt 0:02:31]} 27. Bxf4 {[%emt 0:01:35]} Nxf4 {[%emt 0:00:09]} (27... Qxf4 28. Qxf4 Nxf4 29. Kf1 $17) 28. Qe1 $2 {[%emt 0:01:45]} (28. b4 $17 {was called for.}) 28... Re8 {[%emt 0:00:36]} 29. Qxg3+ {[%emt 0:00:27]} Kh8 {[%emt 0:00:16] Strongly threatening ...Ne2+.} 30. Re1 $2 {[%emt 0:04:54]} (30. Qg4 Ne2+ 31. Kh2 Qxg4 32. fxg4 Nxc1 33. Rxc1) 30... Rg8 {[%emt 0:00:39]} 31. Re5 {[%emt 0:00:02]} Ne2+ {[%emt 0:01:30]} ({Inferior is} 31... Rxg3 32. Rxf5 Rxg2+ 33. Kf1 $11) 32. Kf2 {[%emt 0:00:06]} Nxg3 {[%emt 0:00:29]} 33. Rxf5 {[%emt 0:00:02]} Nxf5 {[%emt 0:00:08]} 34. Rf6 {[%emt 0:00:08]} Nxd4 {[%emt 0:02:32]} 35. Rxf7 {[%emt 0:00:01]} Nc6 {[%emt 0:00:26]} 36. b4 {[%emt 0:00:02]} a5 {[%emt 0:01:28]} 37. bxa5 {[%emt 0:00:38]} Nxa5 {[%emt 0:00:15]} 38. g4 {[%emt 0:01:05]} Rgf8 {[%emt 0:01:25]} 39. Rd7 {[%emt 0:00:23]} Rb3 {[%emt 0:00:49][%csl LRa3,LRf3]} 40. Nc5 {[%emt 0:00:00]} Rbxf3+ {[%emt 0:00:00]} 41. Ke2 {[%emt 0:35:08]} 0-1

[Event "Azerbaijan-ch 1st League 2025"]
[Site "Baku"]
[Date "2025.01.07"]
[Round "2.5"]
[White "Hamidov, Allahverdi"]
[Black "Israilov, Agil"]
[Result "1-0"]
[Annotator "TA"]
[ECO "E90"]
[WhiteElo "2200"]
[BlackElo "2280"]
[PlyCount "65"]
[EventDate "2025.01.05"]
[EventType "swiss"]
[EventCountry "AZE"]
[SourceTitle "playchess.com"]
[Source "ChessBase"]
[SourceQuality "1"]
[TimeControl "40/5400+30:1800+30"]

{[%evp 15,65,65,70,73,70,69,75,68,97,90,108,103,117,108,111,105,119,106,214,188,224,241,258,251,312,271,325,272,289,272,276,259,227,236,439,437,564,494,535,546,544,466,453,446,514,497,549,547,683,689,686,661]} 1. d4 {[%emt 0:00:03][%cal Bd2d4,Bd4d5][%mdl 32]} a6 {[%emt 0:00:30]} 2. c4 {[%emt 0:02:05]} d6 {[%emt 0:03:05]} 3. e4 {[%emt 0:01:14]} Nd7 {[%emt 0:00:42]} 4. Nc3 {[%emt 0:00:21]} c5 {[%emt 0:00:58]} 5. d5 {[%emt 0:02:16]} g6 {[%emt 0:01:01]} 6. Nf3 {[%emt 0:00:43]} Bg7 {[%emt 0:00:10]} 7. Bd3 {[%emt 0:00:43]} Ngf6 {[%emt 0:02:00]} 8. h3 {[%emt 0:02:16]} O-O {[%emt 0:01:45][%cal Ob7b5]} 9. O-O {[%emt 0:00:16]} Re8 {[%emt 0:01:43]} 10. Re1 {[%emt 0:03:09]} e6 {[%emt 0:03:40][%cal Be7e6,Be6e5][%mdl 32]} 11. Bf4 {[%emt 0:05:03]} e5 {[%emt 0:14:01]} 12. Be3 {[%emt 0:05:01]} Rb8 {[%emt 0:00:23]} 13. Rb1 {[%emt 0:01:48]} Bf8 {[%emt 0:05:31]} 14. a3 {[%emt 0:05:41] White is more active.} Qc7 {[%emt 0:05:34]} 15. Nd2 {[%emt 0:08:05][%cal Bf3d2,Bd2c4,Bc4a5][%mdl 32]} b6 {[%emt 0:08:36]} 16. b4 {[%emt 0:05:50]} b5 {[%emt 0:01:04]} 17. Qc2 {[%emt 0:07:08]} bxc4 {[%emt 0:05:40]} 18. Nxc4 {[%emt 0:00:44]} cxb4 {[%emt 0:00:53]} 19. axb4 {[%emt 0:00:43]} Bb7 {[%emt 0:04:00]} 20. Rec1 {[%emt 0:05:20]} Rec8 {[%emt 0:01:05]} 21. Qa2 {[%emt 0:00:49]} Qd8 {[%emt 0:02:55]} 22. Na5 {[%emt 0:01:36]} Rc7 {[%emt 0:00:20]} 23. Na4 {[%emt 0:06:28]} Rxc1+ {[%emt 0:05:07]} 24. Rxc1 {[%emt 0:01:37][%cal Bb1c1,Bc1c7,Bc7a7,Ba7a6,Ba6c6][%mdl 32] Nc6 would now be deadly.} Qe8 $2 {[%emt 0:01:34]} (24... Rc8 25. Rb1 (25. Nxb7 Rxc1+ 26. Bxc1 Qc7 $18) 25... Rc7 26. Nxb7 Rxb7 27. Bxa6 Rc7) 25. Rc7 $18 {[%emt 0:07:42]} Ba8 {[%emt 0:03:27]} 26. Qc4 {[%emt 0:02:21]} Qd8 {[%emt 0:03:08][%cal Ob8b4]} 27. Ra7 {[%emt 0:01:01]} Rc8 {[%emt 0:06:56]} 28. Nc6 {[%emt 0:02:10]} Qe8 {[%emt 0:00:36]} 29. Rxa6 {[%emt 0:01:31]} (29. Qxa6 Bxc6 30. dxc6 Nb8 $11) 29... Bxc6 {[%emt 0:02:31]} 30. Rxc6 {[%emt 0:00:40]} Ra8 {[%emt 0:00:09] Black is weak on the light squares} 31. b5 {[%emt 0:00:59]} Nb8 {[%emt 0:00:05]} 32. Rc7 {[%emt 0:00:54]} Kg7 {[%emt 0:01:40]} 33. Ba7 {[%emt 0:01:04]} 1-0

[Event "Azerbaijan-ch 1st League 2025"]
[Site "Baku"]
[Date "2025.01.07"]
[Round "2.6"]
[White "Aslanov, Umid"]
[Black "Rzayev, Chingiz"]
[Result "1-0"]
[Annotator "TA"]
[ECO "B01"]
[WhiteElo "2250"]
[BlackElo "2153"]
[PlyCount "77"]
[EventDate "2025.01.05"]
[EventType "swiss"]
[EventCountry "AZE"]
[SourceTitle "playchess.com"]
[Source "ChessBase"]
[SourceQuality "1"]
[TimeControl "40/5400+30:1800+30"]

{[%evp 9,77,66,94,98,89,73,86,40,123,130,126,94,131,130,111,107,105,115,116,83,103,92,154,137,168,145,147,139,142,109,116,110,104,78,65,80,104,104,170,165,167,174,245,231,242,222,364,328,466,453,478,475,419,362,355,0,475,436,627,635,679,619,724,708,683,648,641,639,952,945]} 1. e4 {[%emt 0:00:03]} d5 {[%emt 0:00:04]} 2. exd5 {[%emt 0:00:04]} Nf6 {[%emt 0:00:03]} 3. Nf3 {[%emt 0:00:17]} Bg4 {[%emt 0:00:06]} 4. Bb5+ {[%emt 0:00:11]} Nbd7 {[%emt 0:00:23]} 5. h3 {[%emt 0:00:17]} a6 {[%emt 0:00:32]} 6. hxg4 {[%emt 0:00:09]} axb5 {[%emt 0:00:06]} 7. Qe2 {[%emt 0:00:03]} Nxd5 {[%emt 0:02:32]} 8. Nc3 {[%emt 0:00:41]} (8. Qxb5 $16 e6 9. a3 (9. Qxb7 Nb4 $14)) 8... N7b6 {[%emt 0:15:42]} (8... Nxc3 $14 9. dxc3 c6) 9. Qxb5+ $16 {[%emt 0:04:10]} c6 {[%emt 0:00:46]} 10. Qe2 {[%emt 0:00:01]} Qd7 {[%emt 0:06:43]} 11. Nxd5 {[%emt 0:04:40]} Nxd5 {[%emt 0:04:24]} 12. Ne5 {[%emt 0:02:05]} Qd6 {[%emt 0:01:25]} 13. d4 {[%emt 0:01:00]} g6 {[%emt 0:07:27]} 14. c3 {[%emt 0:02:51] Against Qb4. White is more active.} Bg7 {[%emt 0:01:11]} 15. Nd3 {[%emt 0:08:13]} b5 {[%emt 0:03:16]} (15... O-O $142) 16. Bd2 {[%emt 0:06:00]} Ra7 {[%emt 0:04:55]} 17. Kf1 {[%emt 0:06:40]} f6 {[%emt 0:06:50]} 18. a3 {[%emt 0:04:28]} O-O {[%emt 0:05:45]} 19. Bh6 {[%emt 0:05:45]} e5 {[%emt 0:13:47]} 20. dxe5 {[%emt 0:09:00]} fxe5 {[%emt 0:00:05][%cal Oe5e4]} 21. Be3 {[%emt 0:02:10]} Nxe3+ {[%emt 0:03:07]} 22. Qxe3 {[%emt 0:00:19]} Raf7 {[%emt 0:00:09][%cal Oe5e4]} 23. Re1 {[%emt 0:01:47]} e4 {[%emt 0:08:06]} 24. Qxe4 $18 {[%emt 0:00:08]} c5 {[%emt 0:00:02] Threatens to win with ...c4.} 25. f3 {[%emt 0:03:34]} b4 {[%emt 0:00:03]} (25... Rd8 $142) 26. axb4 {[%emt 0:02:46]} cxb4 {[%emt 0:00:22]} 27. Nxb4 {[%emt 0:00:57]} ({Don't take} 27. cxb4 $6 Rd8) 27... Qb6 {[%emt 0:08:39]} (27... Rd7 {was necessary.} 28. Qc4+ Kh8) 28. Re2 {[%emt 0:05:21]} Kh8 {[%emt 0:02:53]} (28... Ra7 $142 29. Qe6+ Qxe6 30. Rxe6 Rc8) 29. Nd5 {[%emt 0:07:37]} Qa6 {[%emt 0:00:28]} 30. Kf2 {[%emt 0:00:30]} Qa7+ {[%emt 0:02:47]} 31. Qe3 {[%emt 0:00:30]} Qd7 {[%emt 0:00:02]} 32. Qe4 {[%emt 0:03:00]} Qa7+ $1 {[%emt 0:00:02]} 33. Re3 {[%emt 0:00:45]} Rb7 {[%emt 0:00:10]} (33... Rb8 $142 34. b4 (34. Qxg6 Rxb2+ 35. Kf1 Bf8 $18) 34... Rd8 35. Qxg6 Be5) 34. b4 {[%emt 0:00:36]} Rd8 {[%emt 0:00:33]} 35. Kg3 {[%emt 0:05:44][%cal Oe4g6] Threatens to win with Qxg6!.} Qb8+ {[%emt 0:02:23]} 36. f4 {[%emt 0:00:09][%cal Oe4g6] Intending Qxg6! and mate.} Qd6 {[%emt 0:00:19]} 37. c4 {[%emt 0:00:29]} Rf7 {[%emt 0:00:42]} 38. Qe6 {[%emt 0:03:48]} Qf8 {[%emt 0:00:22]} 39. Ne7 {[%emt 0:01:01]} 1-0